fUSD/lending_fUSD_20260514
["ID","MTS","AMOUNT","RATE_DAILY","PERIOD"]
[422246667,1778763050000,-280.0,0.00019059,2]
[422246664,1778763050000,-200.0,0.00019059,2]
[422246671,1778763050000,-700.0,0.00019061,2]
[422246672,1778763050000,-700.0,0.00019061,2]
[422246674,1778763050000,-700.0,0.00019061,2]
[422246669,1778763050000,-700.0,0.00019061,2]
[422246660,1778763050000,-500.0,0.00019058,2]
[422246705,1778763050000,-780.093953,0.00019178,2]
[422246701,1778763050000,-780.093953,0.00019178,2]
[422246733,1778763050000,-178.65416625,0.0002,2]
[422246734,1778763050000,-25903.70260961,0.0002,2]
[422246735,1778763050000,-3950.0,0.0002,2]
[422246738,1778763050000,-1058.0267622,0.0002,2]
[422246737,1778763050000,-1310.75016125,0.0002,2]
[422246736,1778763050000,-26757.09254126,0.0002,2]
[422246744,1778763050000,-2000.0,0.0002,10]
[422246740,1778763050000,-52289.54262046,0.0002,2]
[422246743,1778763050000,-774.0,0.0002,2]
[422246739,1778763050000,-152.0,0.0002,2]
[422246741,1778763050000,-1716.32875933,0.0002,2]
[422246754,1778763050000,-175.8020267,0.0002,2]
[422246755,1778763050000,-175.80202671,0.0002,2]
[422246745,1778763050000,-1398.0,0.0002,2]
[422246746,1778763050000,-301.22898656,0.0002,2]
[422246747,1778763050000,-6587.0,0.0002,2]
[422246748,1778763050000,-150.0,0.0002,2]
[422246749,1778763050000,-2000.0,0.0002,2]
[422246751,1778763050000,-175.8020267,0.0002,2]
[422246753,1778763050000,-175.8020267,0.0002,2]
[422246750,1778763050000,-400.0,0.0002,2]
[422246752,1778763050000,-175.8020267,0.0002,2]
[422246702,1778763050000,-780.093953,0.00019178,2]
[422246731,1778763050000,-7075.70391771,0.0002,2]
[422246730,1778763050000,-4002.0,0.0002,2]
[422246742,1778763050000,-4837.45647603,0.0002,2]
[422246727,1778763050000,-2586.85809042,0.00019898,2]
[422246699,1778763050000,-780.093953,0.00019178,2]
[422246732,1778763050000,-1552.61295854,0.0002,2]
[422246706,1778763050000,-780.093953,0.00019178,2]
[422246708,1778763050000,-780.093953,0.00019178,2]
[422246709,1778763050000,-167.09573666,0.00019178,2]
[422246707,1778763050000,-780.093953,0.00019178,2]
[422246710,1778763050000,-270.0,0.00019237,2]
[422246721,1778763050000,-9815.0,0.000197,2]
[422246712,1778763050000,-7452.0,0.00019254,2]
[422246714,1778763050000,-1700.0,0.00019331,2]
[422246713,1778763050000,-6120.0,0.00019321,2]
[422246715,1778763050000,-2494.55939289,0.0001935,2]
[422246711,1778763050000,-1209.0,0.00019237,2]
[422246717,1778763050000,-618.62059,0.000195,2]
[422246729,1778763050000,-329.59,0.00019968,2]
[422246725,1778763050000,-150.0,0.00019849,2]
[422246724,1778763050000,-150.0,0.00019849,2]
[422246726,1778763050000,-150.0,0.00019849,2]
[422246723,1778763050000,-150.0,0.00019849,2]
[422246728,1778763050000,-2003.81543517,0.000199,3]
[422246718,1778763050000,-156.8306539,0.00019503,2]
[422246720,1778763050000,-441.91799074,0.000197,2]
[422246719,1778763050000,-1725.01407358,0.000197,2]
[422246716,1778763050000,-957.84,0.00019397,2]
[422246722,1778763050000,-101768.0,0.000197,2]
[422246800,1778763051000,-839.370064,0.000204,2]
[422246792,1778763051000,-5846.82831308,0.000202,2]
[422246793,1778763051000,-353.25828545,0.00020205,2]
[422246794,1778763051000,-608.0,0.00020247,2]
[422246803,1778763051000,-151.0,0.000204,2]
[422246801,1778763051000,-839.370064,0.000204,2]
[422246789,1778763051000,-5846.828321,0.000202,2]
[422246790,1778763051000,-5846.828321,0.000202,2]
[422246785,1778763051000,-892.364592,0.000202,2]
[422246788,1778763051000,-892.364593,0.000202,2]
[422246786,1778763051000,-892.364592,0.000202,2]
[422246802,1778763051000,-839.370063,0.000204,2]
[422246799,1778763051000,-839.370064,0.000204,2]
[422246812,1778763051000,-4914.07,0.00020548,2]
[422246798,1778763051000,-284.22,0.000204,2]
[422246797,1778763051000,-2560.3,0.00020381,2]
[422246795,1778763051000,-5530.0,0.000203,3]
[422246804,1778763051000,-2873.24965824,0.0002041,30]
[422246805,1778763051000,-180.60966794,0.00020433,19]
[422246807,1778763051000,-4914.07,0.00020548,2]
[422246815,1778763051000,-4914.07,0.00020548,2]
[422246808,1778763051000,-4914.07,0.00020548,2]
[422246810,1778763051000,-4914.07,0.00020548,2]
[422246813,1778763051000,-4914.07,0.00020548,2]
[422246811,1778763051000,-4914.07,0.00020548,2]
[422246787,1778763051000,-892.364592,0.000202,2]
[422246796,1778763051000,-3000.0,0.00020321,3]
[422246784,1778763051000,-399.9,0.000202,2]
[422246759,1778763051000,-1000.0,0.0002,7]
[422246782,1778763051000,-726.414866,0.000201,2]
[422246809,1778763051000,-4914.07,0.00020548,2]
[422246756,1778763051000,-200.0,0.0002,10]
[422246757,1778763051000,-18047.92,0.0002,2]
[422246761,1778763051000,-780.093953,0.0002,2]
[422246762,1778763051000,-780.093953,0.0002,2]
[422246760,1778763051000,-780.093953,0.0002,2]
[422246763,1778763051000,-780.093953,0.0002,2]
[422246764,1778763051000,-151.0,0.0002,2]
[422246766,1778763051000,-2000.0,0.0002001,2]
[422246765,1778763051000,-293.593496,0.00020002,2]
[422246767,1778763051000,-2958.630803,0.0002002,2]
[422246758,1778763051000,-151.37789196,0.0002,20]
[422246777,1778763051000,-2367.0,0.0002005,2]
[422246778,1778763051000,-260.0,0.0002005,2]
[422246768,1778763051000,-7300.0,0.0002003,2]
[422246769,1778763051000,-166.0,0.0002005,2]
[422246775,1778763051000,-169.0,0.0002005,2]
[422246770,1778763051000,-3248.0,0.0002005,2]
[422246779,1778763051000,-214.518505,0.000201,10]
[422246771,1778763051000,-4279.0,0.0002005,2]
[422246776,1778763051000,-451.0,0.0002005,2]
[422246773,1778763051000,-153.0,0.0002005,2]
[422246774,1778763051000,-523.0,0.0002005,2]
[422246772,1778763051000,-202.0,0.0002005,2]
[422246791,1778763051000,-5846.828321,0.000202,2]
[422246781,1778763051000,-726.414866,0.000201,2]
[422246780,1778763051000,-726.414866,0.000201,2]
[422246783,1778763051000,-726.414874,0.000201,2]
[422246814,1778763051000,-4914.07,0.00020548,2]
[422246806,1778763051000,-2682.57183977,0.00020446,2]
[422246825,1778763051000,-4914.07,0.00020548,2]
[422246848,1778763051000,-584.087981,0.00020548,2]
[422246849,1778763051000,-584.087981,0.00020548,2]
[422246847,1778763051000,-584.087981,0.00020548,2]
[422246851,1778763051000,-425.186581,0.00020548,2]
[422246855,1778763051000,-1000.0,0.00020699,2]
[422246852,1778763051000,-425.186581,0.00020548,2]
[422246853,1778763051000,-425.186581,0.00020548,2]
[422246854,1778763051000,-425.186582,0.00020548,2]
[422246859,1778763051000,-500.0,0.00020992,2]
[422246857,1778763051000,-1882.33756402,0.000209,30]
[422246864,1778763051000,-1060.0,0.00021,2]
[422246861,1778763051000,-3408.2968267,0.00021,7]
[422246860,1778763051000,-2781.82699784,0.00020994,2]
[422246856,1778763051000,-22951.26444433,0.000207,2]
[422246858,1778763051000,-3532.0984763,0.0002099,2]
[422246862,1778763051000,-1208.44302373,0.00021,2]
[422246863,1778763051000,-199.44620749,0.00021,2]
[422246874,1778763051000,-15000.0,0.00021,2]
[422246875,1778763051000,-6111.0,0.00021,2]
[422246865,1778763051000,-196.75,0.00021,2]
[422246867,1778763051000,-1367.0,0.00021,2]
[422246871,1778763051000,-1345.0,0.00021,2]
[422246870,1778763051000,-1559.422,0.00021,2]
[422246866,1778763051000,-2000.0,0.00021,2]
[422246873,1778763051000,-10000.0,0.00021,2]
[422246868,1778763051000,-10000.0,0.00021,2]
[422246817,1778763051000,-4914.07,0.00020548,2]
[422246842,1778763051000,-629.126431,0.00020548,2]
[422246843,1778763051000,-629.126431,0.00020548,2]
[422246869,1778763051000,-283.0,0.00021,2]
[422246845,1778763051000,-151.0,0.00020548,2]
[422246846,1778763051000,-151.0,0.00020548,2]
[422246819,1778763051000,-4914.07,0.00020548,2]
[422246818,1778763051000,-4914.07,0.00020548,2]
[422246820,1778763051000,-4914.07,0.00020548,2]
[422246824,1778763051000,-4914.07,0.00020548,2]
[422246826,1778763051000,-4914.07,0.00020548,2]
[422246821,1778763051000,-4914.07,0.00020548,2]
[422246872,1778763051000,-150.0,0.00021,2]
[422246827,1778763051000,-2985.4,0.00020548,2]
[422246822,1778763051000,-4914.07,0.00020548,2]
[422246823,1778763051000,-4914.07,0.00020548,2]
[422246833,1778763051000,-151.0,0.00020548,2]
[422246832,1778763051000,-4774.52,0.00020548,2]
[422246816,1778763051000,-4914.07,0.00020548,2]
[422246828,1778763051000,-2985.4,0.00020548,2]
[422246844,1778763051000,-629.126425,0.00020548,2]
[422246839,1778763051000,-155.677671,0.00020548,2]
[422246841,1778763051000,-629.126431,0.00020548,2]
[422246850,1778763051000,-584.087988,0.00020548,2]
[422246829,1778763051000,-4774.54,0.00020548,2]
[422246831,1778763051000,-4774.54,0.00020548,2]
[422246840,1778763051000,-151.0,0.00020548,2]
[422246836,1778763051000,-155.677675,0.00020548,2]
[422246834,1778763051000,-151.0,0.00020548,2]
[422246838,1778763051000,-155.677675,0.00020548,2]
[422246830,1778763051000,-4774.54,0.00020548,2]
[422246835,1778763051000,-151.0,0.00020548,2]
[422246837,1778763051000,-155.677675,0.00020548,2]
[422246912,1778763052000,-926.0,0.00021519,2]
[422246915,1778763052000,-2884.75459676,0.00021542,2]
[422246914,1778763052000,-1223.0,0.00021519,2]
[422246916,1778763052000,-250.0,0.00021586,2]
[422246906,1778763052000,-9896.09219955,0.000215,2]
[422246913,1778763052000,-1270.0,0.00021519,2]
[422246911,1778763052000,-544.42265899,0.000215,15]
[422246910,1778763052000,-593.6785001,0.000215,15]
[422246909,1778763052000,-642.98287275,0.000215,15]
[422246907,1778763052000,-1132.21366006,0.000215,2]
[422246917,1778763052000,-250.0,0.00021586,2]
[422246918,1778763052000,-250.0,0.00021586,2]
[422246926,1778763052000,-200.0,0.00021586,2]
[422246928,1778763052000,-200.0,0.00021586,2]
[422246930,1778763052000,-200.0,0.00021586,2]
[422246929,1778763052000,-200.0,0.00021586,2]
[422246919,1778763052000,-250.0,0.00021586,2]
[422246922,1778763052000,-250.0,0.00021586,2]
[422246923,1778763052000,-250.0,0.00021586,2]
[422246927,1778763052000,-200.0,0.00021586,2]
[422246925,1778763052000,-245.0,0.00021586,2]
[422246921,1778763052000,-250.0,0.00021586,2]
[422246924,1778763052000,-250.0,0.00021586,2]
[422246931,1778763052000,-200.0,0.00021586,2]
[422246908,1778763052000,-299.95238631,0.000215,15]
[422246933,1778763052000,-2000.0,0.00021587,2]
[422246920,1778763052000,-250.0,0.00021586,2]
[422246903,1778763052000,-157.0,0.00021245,3]
[422246898,1778763052000,-31710.507227,0.000211,2]
[422246904,1778763052000,-496.38,0.00021264,2]
[422246934,1778763052000,-2000.0,0.00021587,2]
[422246876,1778763052000,-6111.0,0.00021,2]
[422246877,1778763052000,-214.95940296,0.00021,3]
[422246878,1778763052000,-525.0485446,0.00021,2]
[422246888,1778763052000,-4279.0,0.0002105,2]
[422246883,1778763052000,-157.0,0.00021,2]
[422246880,1778763052000,-5530.0,0.00021,5]
[422246881,1778763052000,-157.0,0.00021,2]
[422246889,1778763052000,-202.0,0.0002105,2]
[422246882,1778763052000,-157.0,0.00021,2]
[422246887,1778763052000,-3248.0,0.0002105,2]
[422246884,1778763052000,-157.0,0.00021,2]
[422246905,1778763052000,-180.50966794,0.00021351,22]
[422246885,1778763052000,-157.0,0.00021,2]
[422246891,1778763052000,-523.0,0.0002105,2]
[422246901,1778763052000,-687.89,0.00021205,2]
[422246890,1778763052000,-165.01962833,0.0002105,2]
[422246900,1778763052000,-114160.1661127,0.0002114,2]
[422246892,1778763052000,-169.0,0.0002105,2]
[422246899,1778763052000,-2117.2826661,0.000211,2]
[422246893,1778763052000,-451.0,0.0002105,2]
[422246896,1778763052000,-3424.5715322,0.000211,2]
[422246897,1778763052000,-2518.6977796,0.000211,2]
[422246894,1778763052000,-2367.0,0.0002105,2]
[422246895,1778763052000,-260.0,0.0002105,2]
[422246902,1778763052000,-353.25828545,0.00021233,2]
[422246886,1778763052000,-157.0,0.00021,2]
[422246935,1778763052000,-2000.0,0.00021587,2]
[422246879,1778763052000,-500.0,0.00021,2]
[422246932,1778763052000,-337.0,0.00021586,2]
[422246968,1778763052000,-153.674411,0.00021918,2]
[422246961,1778763052000,-657.0,0.00021828,2]
[422246966,1778763052000,-151.0,0.00021918,2]
[422246964,1778763052000,-151.0,0.00021918,2]
[422246983,1778763052000,-523.0,0.0002205,2]
[422246972,1778763052000,-2023.18025979,0.00022,2]
[422246975,1778763052000,-450.0,0.00022,2]
[422246973,1778763052000,-6547.0,0.00022,2]
[422246982,1778763052000,-202.0,0.0002205,2]
[422246985,1778763052000,-451.0,0.0002205,2]
[422246980,1778763052000,-3248.0,0.0002205,2]
[422246977,1778763052000,-285.73352572,0.00022005,2]
[422246962,1778763052000,-284.22,0.000219,2]
[422246974,1778763052000,-11709.58328555,0.00022,4]
[422246978,1778763052000,-155.2536542,0.00022005,2]
[422246984,1778763052000,-169.0,0.0002205,2]
[422246976,1778763052000,-974.3328105,0.00022005,2]
[422246981,1778763052000,-4279.0,0.0002205,2]
[422246987,1778763052000,-260.0,0.0002205,2]
[422246988,1778763052000,-2991.49051684,0.0002209,2]
[422246992,1778763052000,-256.05635231,0.00022407,2]
[422246994,1778763052000,-256.05635228,0.00022407,2]
[422246989,1778763052000,-1277.21621013,0.00022165,2]
[422246990,1778763052000,-447.96308452,0.0002226,2]
[422246986,1778763052000,-2367.0,0.0002205,2]
[422246991,1778763052000,-2560.3,0.00022353,2]
[422246979,1778763052000,-809.0,0.00022022,2]
[422246965,1778763052000,-151.0,0.00021918,2]
[422246993,1778763052000,-256.05635228,0.00022407,2]
[422246967,1778763052000,-152.359746,0.00021918,2]
[422246963,1778763052000,-5000.0,0.00021918,2]
[422246941,1778763052000,-2000.0,0.00021591,2]
[422246942,1778763052000,-2000.0,0.00021591,2]
[422246937,1778763052000,-2000.0,0.00021587,2]
[422246943,1778763052000,-2000.0,0.00021591,2]
[422246940,1778763052000,-2000.0,0.00021591,2]
[422246938,1778763052000,-2000.0,0.00021587,2]
[422246939,1778763052000,-2000.0,0.00021591,2]
[422246944,1778763052000,-2000.0,0.00021591,2]
[422246948,1778763052000,-2000.0,0.00021591,2]
[422246957,1778763052000,-2000.0,0.00021596,2]
[422246946,1778763052000,-2000.0,0.00021591,2]
[422246947,1778763052000,-2000.0,0.00021591,2]
[422246956,1778763052000,-2000.0,0.00021596,2]
[422246936,1778763052000,-2000.0,0.00021587,2]
[422246955,1778763052000,-2000.0,0.00021596,2]
[422246945,1778763052000,-2000.0,0.00021591,2]
[422246960,1778763052000,-152.0,0.00021822,3]
[422246971,1778763052000,-500.0,0.00021953,2]
[422246969,1778763052000,-150.0,0.00021918,2]
[422246970,1778763052000,-18047.92,0.00021931,2]
[422246959,1778763052000,-536.0,0.00021649,2]
[422246958,1778763052000,-2000.0,0.00021596,2]
[422246950,1778763052000,-2000.0,0.00021596,2]
[422246953,1778763052000,-2000.0,0.00021596,2]
[422246951,1778763052000,-2000.0,0.00021596,2]
[422246952,1778763052000,-2000.0,0.00021596,2]
[422246949,1778763052000,-2000.0,0.00021596,2]
[422246954,1778763052000,-2000.0,0.00021596,2]
[422247036,1778763053000,-154.0,0.00023,30]
[422247033,1778763053000,-154.0,0.00023,30]
[422247029,1778763053000,-154.0,0.00023,30]
[422247028,1778763053000,-154.0,0.00023,30]
[422247026,1778763053000,-154.0,0.00023,30]
[422247024,1778763053000,-154.0,0.00023,30]
[422247027,1778763053000,-154.0,0.00023,30]
[422247031,1778763053000,-154.0,0.00023,30]
[422247022,1778763053000,-166.0,0.00023,30]
[422247030,1778763053000,-154.0,0.00023,30]
[422247035,1778763053000,-154.0,0.00023,30]
[422247042,1778763053000,-154.0,0.00023,30]
[422247034,1778763053000,-154.0,0.00023,30]
[422247037,1778763053000,-154.0,0.00023,30]
[422247038,1778763053000,-154.0,0.00023,30]
[422247040,1778763053000,-154.0,0.00023,30]
[422247025,1778763053000,-154.0,0.00023,30]
[422247041,1778763053000,-154.0,0.00023,30]
[422247043,1778763053000,-154.0,0.00023,30]
[422247054,1778763053000,-159.0,0.00023,30]
[422247044,1778763053000,-154.0,0.00023,30]
[422247048,1778763053000,-154.0,0.00023,30]
[422247049,1778763053000,-154.0,0.00023,30]
[422247046,1778763053000,-154.0,0.00023,30]
[422247039,1778763053000,-154.0,0.00023,30]
[422247023,1778763053000,-154.0,0.00023,30]
[422247014,1778763053000,-3373.91134611,0.00023,2]
[422247021,1778763053000,-363.0,0.00023,30]
[422247051,1778763053000,-154.0,0.00023,30]
[422246996,1778763053000,-513.81852189,0.00022407,2]
[422246997,1778763053000,-373.07,0.00022466,2]
[422246995,1778763053000,-513.81852191,0.00022407,2]
[422246998,1778763053000,-490.03,0.00022466,2]
[422246999,1778763053000,-512.78,0.00022466,2]
[422247007,1778763053000,-237186.14878002,0.00023,2]
[422247008,1778763053000,-24388.525,0.00023,2]
[422247001,1778763053000,-765.41,0.00022466,2]
[422247000,1778763053000,-1106.54,0.00022466,2]
[422247003,1778763053000,-152.0,0.00022551,4]
[422247006,1778763053000,-4753.57756741,0.00023,2]
[422247002,1778763053000,-35989.98132614,0.000225,2]
[422247004,1778763053000,-156.51,0.00022603,2]
[422247012,1778763053000,-214.95940296,0.00023,30]
[422247009,1778763053000,-730.49,0.00023,30]
[422247020,1778763053000,-200.0,0.00023,30]
[422247011,1778763053000,-2000.0,0.00023,30]
[422247010,1778763053000,-160.5534855,0.00023,30]
[422247015,1778763053000,-160.0,0.00023,30]
[422247013,1778763053000,-208.3309892,0.00023,3]
[422247017,1778763053000,-200.0,0.00023,30]
[422247019,1778763053000,-200.0,0.00023,30]
[422247018,1778763053000,-200.0,0.00023,30]
[422247016,1778763053000,-1000.0,0.00023,14]
[422247032,1778763053000,-154.0,0.00023,30]
[422247005,1778763053000,-4467.74,0.00022691,2]
[422247045,1778763053000,-154.0,0.00023,30]
[422247050,1778763053000,-154.0,0.00023,30]
[422247088,1778763053000,-152.0,0.00023281,5]
[422247087,1778763053000,-192.03505255,0.00023223,21]
[422247081,1778763053000,-260.98746232,0.0002305,2]
[422247086,1778763053000,-155.67492755,0.000232,2]
[422247084,1778763053000,-653.8345166,0.0002314,2]
[422247089,1778763053000,-243.84,0.00023288,4]
[422247091,1778763053000,-788.1176986,0.00023343,2]
[422247085,1778763053000,-6660.7089556,0.00023152,2]
[422247083,1778763053000,-692.24356337,0.00023131,19]
[422247090,1778763053000,-353.25828545,0.00023288,2]
[422247092,1778763053000,-764.1251944,0.00023466,2]
[422247093,1778763053000,-561.9974389,0.00023466,2]
[422247095,1778763053000,-472.4296203,0.00023466,2]
[422247100,1778763053000,-500.0,0.00023731,2]
[422247096,1778763053000,-401.62673865,0.000235,2]
[422247099,1778763053000,-150.0,0.00023671,2]
[422247098,1778763053000,-284.22,0.000236,7]
[422247097,1778763053000,-25472.5761472,0.00023511,2]
[422247102,1778763053000,-18047.92,0.00023861,2]
[422247101,1778763053000,-1326.43,0.00023748,2]
[422247104,1778763053000,-150.0,0.0002395,21]
[422247106,1778763053000,-1326.43,0.00023989,2]
[422247103,1778763053000,-1326.43,0.00023868,2]
[422247105,1778763053000,-268.58058186,0.0002395,21]
[422247047,1778763053000,-154.0,0.00023,30]
[422247082,1778763053000,-157.0,0.00023117,3]
[422247080,1778763053000,-2383.12908863,0.0002305,2]
[422247094,1778763053000,-7075.5705559,0.00023466,2]
[422247076,1778763053000,-220.12944582,0.0002305,2]
[422247053,1778763053000,-159.0,0.00023,30]
[422247073,1778763053000,-780.093945,0.00023,2]
[422247052,1778763053000,-162.0,0.00023,30]
[422247067,1778763053000,-159.0,0.00023,30]
[422247063,1778763053000,-159.0,0.00023,30]
[422247065,1778763053000,-159.0,0.00023,30]
[422247058,1778763053000,-159.0,0.00023,30]
[422247057,1778763053000,-159.0,0.00023,30]
[422247066,1778763053000,-159.0,0.00023,30]
[422247059,1778763053000,-159.0,0.00023,30]
[422247064,1778763053000,-159.0,0.00023,30]
[422247061,1778763053000,-159.0,0.00023,30]
[422247060,1778763053000,-159.0,0.00023,30]
[422247056,1778763053000,-159.0,0.00023,30]
[422247055,1778763053000,-159.0,0.00023,30]
[422247075,1778763053000,-4289.34849084,0.0002305,2]
[422247072,1778763053000,-780.093953,0.00023,2]
[422247070,1778763053000,-780.093953,0.00023,2]
[422247079,1778763053000,-458.12062855,0.0002305,2]
[422247071,1778763053000,-780.093953,0.00023,2]
[422247074,1778763053000,-3267.28229419,0.0002305,2]
[422247068,1778763053000,-159.0,0.00023,30]
[422247077,1778763053000,-525.60692728,0.0002305,2]
[422247069,1778763053000,-159.0,0.00023,30]
[422247062,1778763053000,-159.0,0.00023,30]
[422247078,1778763053000,-185.18784369,0.0002305,2]
[422247144,1778763054000,-157.74965,0.00024658,2]
[422247142,1778763054000,-157.74965,0.00024658,2]
[422247147,1778763054000,-157.74965,0.00024658,2]
[422247143,1778763054000,-157.74965,0.00024658,2]
[422247141,1778763054000,-157.74965,0.00024658,2]
[422247149,1778763054000,-157.74965,0.00024658,2]
[422247140,1778763054000,-157.74965,0.00024658,2]
[422247137,1778763054000,-387.49324502,0.00024658,2]
[422247139,1778763054000,-241.0,0.00024658,2]
[422247138,1778763054000,-338.0,0.00024658,2]
[422247145,1778763054000,-157.74965,0.00024658,2]
[422247146,1778763054000,-157.74965,0.00024658,2]
[422247150,1778763054000,-157.74965,0.00024658,2]
[422247173,1778763054000,-151.0,0.00024658,2]
[422247152,1778763054000,-157.74965,0.00024658,2]
[422247154,1778763054000,-157.74965,0.00024658,2]
[422247156,1778763054000,-157.74965,0.00024658,2]
[422247157,1778763054000,-157.74965,0.00024658,2]
[422247155,1778763054000,-157.74965,0.00024658,2]
[422247158,1778763054000,-157.74965,0.00024658,2]
[422247159,1778763054000,-157.749642,0.00024658,2]
[422247160,1778763054000,-1000.0,0.00024658,2]
[422247151,1778763054000,-157.74965,0.00024658,2]
[422247161,1778763054000,-151.0,0.00024658,2]
[422247163,1778763054000,-151.0,0.00024658,2]
[422247162,1778763054000,-151.0,0.00024658,2]
[422247148,1778763054000,-157.74965,0.00024658,2]
[422247153,1778763054000,-157.74965,0.00024658,2]
[422247135,1778763054000,-1448.0,0.00024658,2]
[422247109,1778763054000,-1253.62021437,0.00024,2]
[422247124,1778763054000,-9289.0,0.00024658,2]
[422247167,1778763054000,-151.0,0.00024658,2]
[422247110,1778763054000,-10590.66712226,0.00024,14]
[422247108,1778763054000,-3600.0,0.00024,2]
[422247107,1778763054000,-1036.77135601,0.00024,2]
[422247111,1778763054000,-500.0,0.00024,2]
[422247116,1778763054000,-353.25828545,0.00024315,2]
[422247114,1778763054000,-2273.88,0.0002411,2]
[422247115,1778763054000,-2598.95152673,0.0002421,2]
[422247113,1778763054000,-1326.43,0.0002411,2]
[422247119,1778763054000,-10000.0,0.00024463,7]
[422247117,1778763054000,-2560.3,0.00024324,2]
[422247120,1778763054000,-1000.0,0.000245,2]
[422247118,1778763054000,-594.0,0.00024397,2]
[422247121,1778763054000,-1270.0,0.00024519,2]
[422247112,1778763054000,-152.0,0.00024011,6]
[422247122,1778763054000,-1223.0,0.00024519,2]
[422247123,1778763054000,-1125.0,0.00024658,2]
[422247126,1778763054000,-187.0,0.00024658,2]
[422247127,1778763054000,-197.70993464,0.00024658,2]
[422247125,1778763054000,-5996.0,0.00024658,2]
[422247130,1778763054000,-1506.0,0.00024658,2]
[422247129,1778763054000,-181.0,0.00024658,2]
[422247128,1778763054000,-337.0,0.00024658,2]
[422247133,1778763054000,-402.0,0.00024658,2]
[422247132,1778763054000,-262.0,0.00024658,2]
[422247131,1778763054000,-301.14503268,0.00024658,2]
[422247134,1778763054000,-351.0,0.00024658,2]
[422247136,1778763054000,-251.0,0.00024658,2]
[422247164,1778763054000,-151.0,0.00024658,2]
[422247190,1778763054000,-1097.0,0.00024658,2]
[422247170,1778763054000,-151.0,0.00024658,2]
[422247199,1778763054000,-1097.0,0.00024658,2]
[422247201,1778763054000,-150.0,0.00024658,2]
[422247204,1778763054000,-1097.0,0.00024658,2]
[422247202,1778763054000,-1097.0,0.00024658,2]
[422247205,1778763054000,-1097.0,0.00024658,2]
[422247203,1778763054000,-1097.0,0.00024658,2]
[422247206,1778763054000,-1097.0,0.00024658,2]
[422247207,1778763054000,-1097.0,0.00024658,2]
[422247208,1778763054000,-1097.0,0.00024658,2]
[422247210,1778763054000,-1097.0,0.00024658,2]
[422247217,1778763054000,-399.38,0.000248,2]
[422247211,1778763054000,-1097.0,0.00024658,2]
[422247218,1778763054000,-594.0,0.00024959,2]
[422247213,1778763054000,-1097.0,0.00024658,2]
[422247212,1778763054000,-1097.0,0.00024658,2]
[422247209,1778763054000,-1097.0,0.00024658,2]
[422247220,1778763054000,-958.03552331,0.00025,5]
[422247219,1778763054000,-157.0,0.0002499,3]
[422247216,1778763054000,-152.0,0.0002474,7]
[422247215,1778763054000,-1110.37378403,0.00024658,2]
[422247214,1778763054000,-1097.0,0.00024658,2]
[422247222,1778763054000,-210.13374186,0.00025,2]
[422247223,1778763054000,-1807.61879635,0.00025,2]
[422247224,1778763054000,-540.0,0.00025,2]
[422247221,1778763054000,-1128.11993312,0.00025,2]
[422247225,1778763054000,-618.54390457,0.00025,2]